fUST/lending_fUST_20250308
["ID","MTS","AMOUNT","RATE_DAILY","PERIOD"]
[355621585,1741399841677,-636.86,0.00056986,120]
[355621586,1741399841687,-566.39,0.00056986,7]
[355621587,1741399841696,-222.827466,0.00056986,120]
[355621588,1741399841705,-500.0,0.00056986,120]
[355621589,1741399841714,-1000.0,0.00056986,7]
[355621590,1741399841723,-500.0,0.00056986,120]
[355621591,1741399841733,-536.87827465,0.00056986,120]
[355621592,1741399841742,-416.66666667,0.0005699,7]
[355621593,1741399841752,-1876.84107633,0.00057,120]
[355621594,1741399841763,-151.0,0.00057,120]
[355621595,1741399841773,-151.0,0.00057,90]
[355621596,1741399841782,-2825.45770334,0.00057,7]
[355621597,1741399841797,-566.77595796,0.00057,7]
[355621598,1741399841941,-2988.22051909,0.00057,7]
[355621602,1741399843515,-2.69148865,0.00054794,120]
[355621624,1741399846472,-497.30851135,0.00054794,120]
[355621625,1741399846482,-518.76118132,0.00055342,120]
[355621626,1741399846492,-2011.21025539,0.00057,7]
[355621668,1741400413203,206.51369908,0.000349,2]
[355621669,1741400514326,1103.0,0.00035,2]
[355621670,1741400702975,-173.0,0.000433,120]
[355621671,1741400702999,-31.017126,0.00043393,5]
[355621672,1741400705757,-204.017126,0.00043393,5]
[355621673,1741400825106,-157.342804,0.0003589,2]
[355621674,1741400825129,-157.342804,0.00042209,2]
[355621675,1741400825151,-1627.71951622,0.00043395,2]
[355621676,1741400835106,-2842.1306357,0.00043395,2]
[355621677,1741400838084,-384.22108959,0.00043395,2]
[355621678,1741400841092,-1961.7285208,0.00043395,2]
[355621679,1741400843089,-552.86240824,0.00043395,2]
[355621680,1741400869411,48690.48630092,0.00026574,10]
[355621681,1741400869437,8171.03281536,0.00026574,10]
[355621687,1741400917215,175.04579196,0.00023,2]
[355621688,1741400918100,156.69690678,0.00025,120]
[355621689,1741400918469,18379.7317893,0.000145,2]
[355621690,1741400921077,240.64155535,0.00025,30]
[355621691,1741400923450,823.81892816,0.0003,30]
[355621698,1741400951162,-3116.76615566,0.0003487,4]
[355621699,1741400951182,-8544.05056742,0.00035,2]
[355621700,1741400951204,-191.08542149,0.00036,30]
[355621701,1741400951225,-502.76370249,0.0004,2]
[355621702,1741400951248,-6165.68306375,0.00043395,2]
[355621703,1741400951269,-162.833692,0.0004491,2]
[355621704,1741400954096,-150.0,0.00045,2]
[355621705,1741400954121,-410.05107506,0.00045318,120]
[355621706,1741400954143,-231.268,0.00045418,120]
[355621707,1741400954167,-169.6255,0.00045418,120]
[355621708,1741400954190,-1007.44373008,0.00046,120]
[355621709,1741400954211,-173.0,0.000466,120]
[355621710,1741400954231,-540.30922626,0.000466,120]
[355621711,1741400954251,-267.95092435,0.000468,30]
[355621712,1741400954272,-190.73590998,0.000478,120]
[355621713,1741400954293,-3152.0179915,0.00048,120]
[355621714,1741400955096,-1986.06877622,0.00048,120]
[355621715,1741400955119,-1000.0,0.00048,30]
[355621716,1741400955144,-500.0,0.00048178,92]
[355621717,1741400955168,-500.0,0.00048278,99]
[355621718,1741400955190,-500.0,0.00048378,94]
[355621719,1741400955212,-10817.55660793,0.00048398,120]
[355621720,1741400955234,-500.0,0.00048478,97]
[355621721,1741400955255,-157.342804,0.00048527,2]
[355621722,1741400955277,-500.0,0.00048578,98]
[355621723,1741400955299,-500.0,0.00048678,99]
[355621724,1741400955321,-500.0,0.00048778,90]
[355621725,1741400955346,-500.0,0.00048878,93]
[355621726,1741400955368,-500.0,0.00048978,94]
[355621727,1741400955392,-500.0,0.00049078,99]
[355621728,1741400955419,-702.09,0.00049178,90]
[355621729,1741400955440,-469.57116877,0.00049437,2]
[355621730,1741400955461,-860.64640963,0.00049446,28]
[355621731,1741400955483,-221.77841468,0.00049447,2]
[355621732,1741400955503,-156.15501895,0.00049517,2]
[355621733,1741400955526,-223.10718384,0.00049517,2]
[355621734,1741400955547,-599.0,0.00049524,120]
[355621735,1741400955566,-599.0,0.00049524,120]
[355621736,1741400955587,-599.0,0.00049524,120]
[355621737,1741400955750,-526.55257956,0.00049524,120]
[355621738,1741400955773,-150.0,0.00049534,30]
[355621739,1741400955796,-287.45,0.00049537,30]
[355621740,1741400955819,-4556.06,0.00049537,10]
[355621741,1741400955840,-3796.71,0.00049537,10]
[355621742,1741400955861,-3163.93,0.00049537,10]
[355621743,1741400955883,-2636.61,0.00049537,10]
[355621744,1741400955907,-500.0,0.00049546,2]
[355621745,1741400955931,-500.0,0.00049546,2]
[355621746,1741400955955,-500.0,0.00049546,2]
[355621747,1741400955977,-500.0,0.00049546,2]
[355621748,1741400956000,-496.99107103,0.00049546,2]
[355621749,1741400956027,-500.0,0.00049546,2]
[355621750,1741400956048,-500.0,0.00049546,2]
[355621751,1741400956070,-500.0,0.00049546,2]
[355621752,1741400956092,-500.0,0.00049546,2]
[355621753,1741400956115,-500.0,0.00049546,2]
[355621754,1741400956144,-500.0,0.00049546,2]
[355621755,1741400956168,-500.0,0.00049546,2]
[355621756,1741400956191,-500.0,0.00049546,2]
[355621757,1741400956214,-500.0,0.00049546,2]
[355621758,1741400956236,-500.0,0.00049546,2]
[355621759,1741400956259,-500.0,0.00049546,2]
[355621760,1741400956280,-500.0,0.00049546,2]
[355621761,1741400956302,-500.0,0.00049546,2]
[355621762,1741400956324,-500.0,0.00049546,2]
[355621763,1741400956351,-500.0,0.00049546,2]
[355621764,1741400956372,-500.0,0.00049546,2]
[355621765,1741400956395,-500.0,0.00049546,2]
[355621766,1741400956419,-500.0,0.00049546,2]
[355621767,1741400956440,-500.0,0.00049546,2]
[355621768,1741400956462,-500.0,0.00049546,2]
[355621769,1741400956485,-500.0,0.00049546,2]
[355621770,1741400956508,-500.0,0.00049546,2]
[355621771,1741400956529,-500.0,0.00049546,2]
[355621772,1741400956551,-500.0,0.00049546,2]
[355621773,1741400956573,-500.0,0.00049546,2]
[355621774,1741400956596,-500.0,0.00049546,2]
[355621775,1741400956619,-500.0,0.00049546,2]
[355621776,1741400956639,-500.0,0.00049546,2]
[355621777,1741400956660,-500.0,0.00049546,2]
[355621778,1741400956683,-595.0,0.00049546,2]
[355621779,1741400956706,-500.0,0.00049546,2]
[355621780,1741400956729,-500.0,0.00049546,2]
[355621781,1741400956752,-500.0,0.00049546,2]
[355621782,1741400956776,-166.33234122,0.00049546,2]
[355621783,1741400956798,-500.0,0.00049546,2]
[355621784,1741400956820,-500.0,0.00049546,2]
[355621785,1741400956842,-500.0,0.00049546,2]
[355621786,1741400956863,-500.0,0.00049546,2]
[355621787,1741400956886,-500.0,0.00049546,2]
[355621788,1741400956907,-500.0,0.00049546,2]
[355621789,1741400956929,-500.0,0.00049546,2]
[355621790,1741400956952,-500.0,0.00049546,2]
[355621791,1741400956975,-999.0,0.00049547,120]
[355621792,1741400957000,-500.0,0.00049573,2]
[355621793,1741400957021,-38020.1888925,0.0004969,120]
[355621794,1741400957045,-60.2940839,0.00049873,10]
[355621795,1741400958100,1000.0,0.00047,30]
[355621797,1741401007510,150.0,0.0004759,2]
[355621798,1741401008835,379.22328053,0.0004712,15]
[355621799,1741401022815,295.2178564,0.00038786,2]
[355621843,1741401032741,-1000.0,0.00049,30]
[355621844,1741401032750,-1942.87,0.0004949,10]
[355621845,1741401032760,-1619.06,0.0004949,10]
[355621846,1741401032769,-15407.19990593,0.000495,30]
[355621849,1741401034848,233.8321,0.000432,120]
[355621873,1741401038571,-168.61,0.0004949,2]
[355621874,1741401038581,-168.61,0.0004949,2]
[355621875,1741401038590,-168.61,0.0004949,2]
[355621876,1741401038600,-500.0,0.00049499,2]
[355621878,1741401038610,-220286.73985926,0.000495,30]
[355621880,1741401038619,-1525.81,0.00049537,10]
[355621882,1741401038629,-22537.12075512,0.00049547,120]
[355621883,1741401038640,-500.0,0.00049547,120]
[355621888,1741401038689,-9959.50281723,0.00049547,120]
[355623272,1741401261065,-204.017126,0.00042499,120]
[355623275,1741401457589,-177.5996812,0.00042499,120]
[355623276,1741401457613,-26.4174448,0.00043882,2]
[355623279,1741401919760,3748.4711131,0.0003,2]
[355623280,1741401995276,-161.914146,0.0003589,2]
[355623281,1741401995302,-44.99001027,0.00037588,2]
[355623282,1741402031075,-196.17285208,0.00037588,2]
[355623283,1741402041126,-160.53056905,0.00037588,2]
[355623284,1741402041148,-150.0,0.00038,7]
[355623285,1741402041170,-500.0,0.0004,120]
[355623286,1741402041192,-500.0,0.00041,120]
[355623287,1741402041213,-161.914146,0.00041211,2]
[355623288,1741402041235,-444.30666489,0.00042,120]
[355623289,1741402042077,-55.69333511,0.00042,120]
[355623290,1741402042098,-500.0,0.00042,7]
[355623291,1741402042118,-16.54000342,0.00042488,2]
[355623292,1741402043109,-145.31987758,0.00042488,2]
[355623293,1741402043134,-167.0,0.000429,120]
[355623294,1741402043156,-117.59019452,0.00043,120]
[355623295,1741402045113,-251.40980548,0.00043,120]
[355623296,1741402045136,-500.0,0.00043,120]
[355623297,1741402045156,-416.8823518,0.00043882,2]
[355623298,1741402045177,-164.0,0.00045,120]
[355623299,1741402045197,-169.347,0.00045418,120]
[355623300,1741402045218,-167.0,0.000458,120]
[355623301,1741402045240,-272.0,0.00046531,5]
[355623302,1741402045260,-161.914146,0.00046532,2]
[355623303,1741402045280,-350.41173465,0.000479,120]
[355623304,1741402045300,-167.0,0.000487,120]
[355623305,1741402045320,-3199.5337336,0.00049,30]
[355623306,1741402045340,-6452.92639879,0.00049,120]
[355623307,1741402045360,-3185.26926917,0.00049,30]
[355623308,1741402045382,-3185.26926917,0.00049,30]
[355623309,1741402045401,-200.11684612,0.00049315,10]
[355623310,1741402045421,-3870.47007454,0.000494,120]
[355623311,1741402050074,-228.14300817,0.000494,120]
[355623377,1741402237881,-280.32938772,0.00049321,120]
[355623379,1741402237891,-836.13133205,0.00049373,28]
[355623381,1741402237901,-1407.26712793,0.000494,120]
[355623391,1741402238011,-212.97237555,0.000494,120]
[355623492,1741402242887,-3416.26741381,0.000494,120]
[355623493,1741402242897,-160.0,0.00049401,2]
[355623494,1741402242907,-221.77841468,0.00049427,2]
[355623495,1741402242917,-4531.04039646,0.0004944,120]
[355623496,1741402242965,-361.92628837,0.0004944,120]
[355623757,1741402245731,-1000.0,0.000494,120]
[355623759,1741402245741,-10215.27913787,0.0004944,120]
[355623774,1741402245896,-329.34922313,0.0004944,120]
[355623779,1741402245949,-3016.49999997,0.0004944,120]
[355623879,1741403236092,-2245.58554368,0.0003325,2]
[355623880,1741403244234,-2425.74093718,0.0003325,2]
[355623881,1741403347086,-3762.27443824,0.0003325,2]
[355623882,1741403347109,-204.27317752,0.00033349,2]
[355623883,1741403347131,-161.914146,0.0003589,2]
[355623884,1741403347153,-744.0,0.00042,120]
[355623885,1741403347174,-161.914146,0.00042209,2]
[355623886,1741403347197,-161.8598825,0.00042331,2]
[355623887,1741403347217,-744.0,0.00044,120]
[355623888,1741403347239,-744.0,0.00046,120]
[355623889,1741403347260,-2969.40666991,0.00047625,2]
[355623890,1741403347281,-224.2635102,0.00047761,120]
[355623891,1741403347301,-987.21216792,0.00047861,120]
[355623892,1741403350091,-12.78783208,0.00047861,120]
[355623893,1741403350116,-744.0,0.00048,120]
[355623894,1741403350137,-500.0,0.00048172,91]
[355623895,1741403350159,-500.0,0.00048272,91]
[355623896,1741403350181,-500.0,0.00048372,93]
[355623897,1741403350204,-500.0,0.00048472,96]
[355623898,1741403350226,-161.914146,0.00048527,2]
[355623899,1741403350247,-631.92,0.00048572,93]
[355623900,1741403350269,-731.6149155,0.000489,28]
[355623901,1741403350291,-748.07918643,0.0004893,2]
[355623918,1741403432073,-834.36955489,0.0004893,2]
[355623919,1741403432086,-547.30909103,0.00048968,120]
[355623920,1741403432128,-4528.74989143,0.00048968,120]
[355623921,1741403432138,-6045.63,0.00049,60]
[355623922,1741403432152,-618.32451624,0.00049,30]
[355623923,1741403432162,-618.32451624,0.00049,30]
[355623924,1741403432171,-5569.93682094,0.000492,40]
[355623925,1741403432181,-5000.0,0.000492,120]
[355623926,1741403432191,-898.27734477,0.000492,120]
[355623927,1741403432220,-2988.45419074,0.000492,120]
[355623933,1741403437949,-269.5267708,0.000492,120]
[355624246,1741403443523,-843.74169369,0.000492,120]
[355624248,1741403443534,-5000.0,0.000492,120]
[355624250,1741403443543,-2764.11148495,0.000493,120]
[355624260,1741403443628,-517.35573206,0.000493,120]
[355624262,1741403443640,-1149.9999994,0.000493,120]
[355624460,1741403597617,-477.17081511,0.00049,30]
[355624463,1741403980871,500.0,0.0003,2]
[355624466,1741404049403,538.90365984,0.0003,2]
[355624467,1741404120801,-292.71075998,0.00045318,120]
[355624468,1741404120824,-48.24461864,0.00045418,120]
[355624471,1741404429114,-1990.11422309,0.00044195,64]
[355624472,1741404440083,-199.56339437,0.00044195,64]
[355624473,1741404454082,-1805.41904185,0.00044195,64]
[355624475,1741404474183,3128.36599523,0.00016,2]
[355624485,1741404509907,277.57152492,0.0001,2]
[355624486,1741404516214,3540.67966659,9e-05,2]
[355624487,1741404517328,20928.39865832,0.000145,2]
[355624491,1741404551083,-280.99412899,0.00042843,2]
[355624492,1741404551104,-4801.07883102,0.00044195,64]
[355624496,1741404554088,-14443.88022967,0.00044195,64]
[355624497,1741404554117,-234.168608,0.00045318,120]
[355624498,1741404554139,-121.75538136,0.00045418,120]
[355624499,1741404554159,-173.451,0.00045418,120]
[355624500,1741404554181,-169.626,0.00045418,120]
[355624501,1741404554202,-1146.69,0.000465,120]
[355624502,1741404554223,-150.0,0.000472,2]
[355624503,1741404554243,-320.03197558,0.00048,120]
[355624504,1741404556120,-234.16860796,0.00048464,120]
[355624505,1741404556144,-1805.8384944,0.00048581,4]
[355624510,1741404593105,85.08549925,0.00048581,4]
[355624514,1741404621885,3589.448037,0.00044433,2]
[355624515,1741404623357,150.0,0.00042333,2]
[355624545,1741404638045,-1333.107496,0.00048509,4]
[355624546,1741404638055,-1326.30611806,0.00048647,2]
[355624547,1741404638064,-1396.49087881,0.00049,30]
[355624548,1741404638074,-1873.66169392,0.00049,30]
[355624549,1741404638083,-180.68064411,0.00049,30]
[355624551,1741404638092,-180.68064411,0.00049,30]
[355624553,1741404638101,-270.46125556,0.00049,120]
[355624554,1741404638112,-863.40599146,0.0004911,28]
[355624555,1741404638121,-1000.0,0.00049141,120]
[355624556,1741404638131,-3548.01,0.000492,120]
[355624557,1741404638140,-1116.23,0.000492,120]
[355624558,1741404638150,-3550.32,0.000492,10]
[355624559,1741404638159,-2958.6,0.000492,10]
[355624560,1741404638168,-2465.5,0.000492,10]
[355624561,1741404638178,-2054.59,0.000492,10]
[355624562,1741404638187,-500.0,0.0004921,120]
[355624563,1741404638196,-500.0,0.0004921,120]
[355624564,1741404638206,-500.0,0.0004921,2]
[355624565,1741404638216,-500.0,0.0004921,2]
[355624566,1741404638225,-500.0,0.0004921,120]
[355624567,1741404638235,-500.0,0.0004921,120]
[355624568,1741404638244,-500.0,0.0004921,2]
[355624569,1741404638254,-500.0,0.0004921,2]
[355624570,1741404638263,-353.50119113,0.0004921,120]
[355624571,1741404638273,-500.0,0.0004921,120]
[355624572,1741404638282,-500.0,0.0004921,2]
[355624573,1741404638291,-500.0,0.0004921,2]
[355624574,1741404638301,-500.0,0.0004921,2]
[355624575,1741404638310,-500.0,0.0004921,120]
[355624576,1741404638320,-500.0,0.0004921,2]
[355624577,1741404638330,-500.0,0.0004921,2]
[355624578,1741404638339,-500.0,0.0004921,2]
[355624579,1741404638348,-500.0,0.0004921,2]
[355624580,1741404638357,-628.24588271,0.0004921,120]
[355624581,1741404638367,-500.0,0.0004921,2]
[355624582,1741404638376,-616.8,0.0004921,2]
[355624583,1741404638386,-500.0,0.0004921,2]
[355624584,1741404638395,-500.0,0.0004921,2]
[355624585,1741404638405,-500.0,0.0004921,2]
[355624586,1741404638415,-500.0,0.0004921,2]
[355624587,1741404638424,-500.0,0.0004921,2]
[355624588,1741404638433,-500.0,0.0004921,2]
[355624589,1741404638443,-500.0,0.0004921,2]
[355624590,1741404638451,-500.0,0.0004921,2]
[355624591,1741404638461,-500.0,0.0004921,2]
[355624592,1741404638470,-500.0,0.0004921,2]
[355624593,1741404638481,-500.0,0.0004921,2]
[355624594,1741404638491,-500.0,0.0004921,2]
[355624595,1741404638500,-500.0,0.0004921,2]
[355624596,1741404638513,-500.0,0.0004921,2]
[355624597,1741404638522,-500.0,0.0004921,2]
[355624598,1741404638531,-500.0,0.0004921,2]
[355624599,1741404638541,-500.0,0.0004921,2]
[355624600,1741404638551,-500.0,0.0004921,2]
[355624601,1741404638561,-500.0,0.0004921,2]
[355624602,1741404638570,-500.0,0.0004921,2]
[355624603,1741404638579,-500.0,0.0004921,2]
[355624604,1741404638589,-500.0,0.0004921,2]
[355624605,1741404638599,-500.0,0.0004921,2]
[355624606,1741404638609,-500.0,0.0004921,2]
[355624607,1741404638619,-636.469951,0.0004921,2]
[355624608,1741404638629,-500.0,0.0004921,2]
[355624609,1741404638639,-500.0,0.0004921,2]
[355624610,1741404638648,-500.0,0.0004921,2]
[355624611,1741404638658,-500.0,0.0004921,2]
[355624612,1741404638668,-500.0,0.0004921,2]
[355624613,1741404638678,-500.0,0.0004921,2]
[355624614,1741404638688,-500.0,0.0004921,2]
[355624615,1741404638698,-500.0,0.0004921,2]
[355624616,1741404638707,-500.0,0.0004921,2]
[355624617,1741404638717,-500.0,0.0004921,2]
[355624618,1741404638727,-500.0,0.0004921,2]
[355624619,1741404638736,-500.0,0.0004921,2]
[355624620,1741404638746,-500.0,0.0004921,2]
[355624621,1741404638756,-500.0,0.0004921,2]
[355624622,1741404638765,-500.0,0.0004921,2]
[355624623,1741404638775,-500.0,0.0004921,2]
[355624624,1741404638784,-500.0,0.0004921,2]
[355624625,1741404638794,-500.0,0.0004921,2]
[355624626,1741404638803,-500.0,0.0004921,2]
[355624627,1741404638813,-500.0,0.0004921,2]
[355624628,1741404638822,-500.0,0.0004921,2]
[355624629,1741404638832,-500.0,0.0004921,2]
[355624630,1741404638841,-500.0,0.0004921,2]
[355624631,1741404638851,-500.0,0.0004921,2]
[355624632,1741404638860,-200.0,0.0004921,2]
[355624633,1741404638870,-500.0,0.0004921,2]
[355624634,1741404638879,-500.0,0.0004921,2]
[355624635,1741404638888,-500.0,0.0004921,2]
[355624636,1741404638898,-500.0,0.0004921,2]
[355624637,1741404638907,-500.0,0.0004921,2]
[355624638,1741404638916,-500.0,0.0004921,2]
[355624639,1741404638926,-500.0,0.0004921,2]
[355624640,1741404638935,-503.78956182,0.0004921,120]
[355624641,1741404638945,-176.055301,0.0004921,120]
[355624642,1741404638954,-151.0,0.0004921,120]
[355624643,1741404638963,-151.0,0.0004921,120]
[355624644,1741404638972,-2784.96841047,0.0004921,40]
[355624645,1741404638982,-2525.44371103,0.0004921,40]
[355624646,1741404638991,-197476.263976,0.00049211,4]
[355624647,1741404639000,-14340.94208234,0.00049211,2]
[355624648,1741404639010,-55555.0,0.0004922,120]
[355624649,1741404639020,-222000.0,0.00049221,2]
[355624650,1741404639029,-151.0,0.00049221,120]
[355624651,1741404639038,-151.0,0.00049221,120]
[355624652,1741404639048,-616.3266126,0.00049273,2]
[355624653,1741404639057,-441.97090026,0.00049273,10]
[355624654,1741404639066,-500.0,0.00049273,10]
[355624655,1741404639075,-500.0,0.00049273,10]
[355624656,1741404639085,-500.0,0.00049273,2]
[355624657,1741404639094,-500.0,0.00049273,10]
[355624658,1741404639103,-39495.2527951,0.0004929,4]
[355624659,1741404639113,-5568.53278359,0.000493,120]
[355624660,1741404639123,-1969.33405847,0.000493,120]
[355624661,1741404639132,-151.0,0.00049305,120]
[355624662,1741404639141,-151.0,0.00049305,120]
[355624663,1741404639151,-151.0,0.00049305,120]
[355624664,1741404639160,-151.0,0.00049311,2]
[355624665,1741404639169,-2000.0,0.00049315,120]
[355624666,1741404639179,-2000.0,0.00049315,120]
[355624667,1741404639188,-2000.0,0.00049315,120]
[355624668,1741404639197,-2000.0,0.00049315,120]
[355624669,1741404639208,-2000.0,0.00049315,120]
[355624670,1741404639220,-2000.0,0.00049315,120]
[355624671,1741404639230,-2000.0,0.00049315,120]
[355624672,1741404639241,-2000.0,0.00049315,120]
[355624673,1741404639252,-2000.0,0.00049315,120]
[355624674,1741404639260,-1936.7676885,0.00049315,120]
[355624675,1741404639268,-1050.85,0.00049315,120]
[355624676,1741404639277,-151.0,0.00049318,120]
[355624677,1741404639286,-163.404489,0.0004932,120]
[355624678,1741404639295,-151.0,0.0004932,120]
[355624679,1741404639306,-151.0,0.0004932,120]
[355624680,1741404639316,-151.0,0.00049321,120]
[355624681,1741404639326,-151.0,0.0004933,120]
[355624682,1741404639335,-157.403513,0.0004933,120]
[355624683,1741404639344,-212.844612,0.0004933,120]
[355624684,1741404639354,-151.0,0.0004933,120]
[355624685,1741404639364,-159.387747,0.0004933,120]
[355624686,1741404639374,-151.0,0.0004933,120]
[355624687,1741404639383,-157.128003,0.0004933,120]
[355624688,1741404639393,-150.0,0.0004933,30]
[355624689,1741404639403,-39495.2527951,0.0004933,4]
[355624690,1741404639413,-151.0,0.0004933,120]
[355624691,1741404639422,-151.0,0.0004933,120]
[355624692,1741404639431,-151.0,0.0004934,120]
[355624693,1741404639442,-151.0,0.0004934,120]
[355624694,1741404639451,-151.0,0.0004934,120]
[355624695,1741404639461,-151.0,0.0004934,120]
[355624696,1741404639471,-151.0,0.0004934,120]
[355624697,1741404639480,-2501.6172422,0.0004935,2]
[355624698,1741404639489,-646.85,0.000494,120]
[355624699,1741404639499,-154.933914,0.0004943,120]
[355624700,1741404639609,-500.0,0.0004943,15]
[355624702,1741404639619,-151.0,0.0004943,120]
[355624703,1741404639629,-8556.82178846,0.00049431,2]
[355624704,1741404639638,-151.0,0.00049434,120]
[355624705,1741404639648,-151.0,0.00049434,120]
[355624706,1741404639658,-234.06325921,0.00049439,60]
[355624707,1741404639668,-9498.025,0.0004944,2]
[355624708,1741404639679,-5000.0,0.0004944,2]
[355624709,1741404639688,-199238.31163257,0.0004944,8]
[355624710,1741404639698,-151.0,0.0004944,120]
[355624711,1741404639707,-151.0,0.0004944,120]
[355624712,1741404639717,-501.68145191,0.00049473,10]
[355624713,1741404639728,-508.15869348,0.00049473,10]
[355624715,1741404639737,-500.0,0.00049473,10]
[355624716,1741404639747,-500.0,0.00049473,10]
[355624717,1741404639756,-501.3007353,0.00049473,10]
[355624718,1741404639765,-500.0,0.00049473,10]
[355624719,1741404639775,-500.0,0.00049473,10]
[355624721,1741404639785,-500.0,0.00049473,10]
[355624722,1741404639794,-500.0,0.00049473,10]
[355624723,1741404639804,-500.0,0.00049473,10]
[355624724,1741404639813,-512.70538615,0.00049473,10]
[355624725,1741404639822,-500.0,0.00049473,10]
[355624726,1741404639832,-502.93317483,0.00049473,10]
[355624727,1741404639841,-502.41335846,0.00049473,10]
[355624728,1741404639851,-500.0,0.00049473,10]
[355624729,1741404639861,-500.0,0.00049473,10]
[355624730,1741404639870,-441.40864746,0.00049473,7]
[355624731,1741404639879,-500.0,0.00049473,10]
[355624733,1741404639889,-500.97595896,0.00049473,10]
[355624734,1741404639899,-604.79249635,0.00049473,10]
[355624735,1741404639908,-500.0,0.00049473,10]
[355624736,1741404639918,-500.0,0.00049473,2]
[355624737,1741404639928,-500.0,0.00049473,10]
[355624738,1741404639937,-500.0,0.00049473,10]
[355624739,1741404639947,-500.0,0.00049473,10]
[355624740,1741404639964,-9604.69757217,0.000495,2]
[355624741,1741404639981,-151.0,0.000495,30]
[355624742,1741404639991,-120522.34576488,0.000495,2]
[355624743,1741404640001,-90592.52417225,0.00049531,120]
[355624744,1741404640011,-150.0,0.00049531,2]
[355624745,1741404640021,-1089.48256945,0.00049531,30]
[355624746,1741404640031,-150.0,0.00049531,2]
[355624748,1741404640040,-648175.90761021,0.00049531,7]
[355624749,1741404640050,-1610.05206388,0.00049531,120]
[355624750,1741404640061,-13546.59971613,0.00049531,30]
[355624751,1741404640071,-2523.14440769,0.00049531,32]
[355624752,1741404640081,-235.18130188,0.00049531,10]
[355624753,1741404640091,-1962.64786174,0.00049531,120]
[355624754,1741404640101,-901.58003675,0.00049531,120]
[355624755,1741404640111,-2132.16038108,0.00049531,30]
[355624757,1741404640122,-1074.09385192,0.00049531,2]
[355624759,1741404640132,-160.36042531,0.00049531,30]
[355624761,1741404640142,-228.48909893,0.00049531,120]
[355624763,1741404640152,-1865.34493149,0.00049531,120]
[355624766,1741404640162,-677.55844948,0.00049531,120]
[355624768,1741404640172,-240.82074905,0.00049531,120]
[355624770,1741404640182,-1915.90777362,0.00049531,60]
[355624772,1741404640192,-3746.50053861,0.00049531,2]
[355624774,1741404640201,-1189.41883163,0.00049531,120]
[355624776,1741404640211,-152.07531587,0.00049531,30]
[355624777,1741404640221,-932.5948282,0.00049531,120]
[355624780,1741404640230,-1776.71222382,0.00049531,120]
[355624782,1741404640240,-325.55774406,0.00049531,30]
[355624784,1741404640250,-935.1242999,0.00049531,120]
[355624786,1741404640259,-853.08636175,0.00049531,120]
[355624788,1741404640269,-1589.67841151,0.00049531,120]
[355624790,1741404640278,-1036.50202188,0.00049531,120]
[355624792,1741404640288,-2538.51592148,0.00049531,120]
[355624794,1741404640298,-200.0,0.00049531,10]
[355624796,1741404640307,-19428.66095393,0.00049531,120]
[355624798,1741404640316,-342.60784007,0.00049531,120]
[355624800,1741404640326,-646669.79703699,0.00049531,20]
[355624802,1741404640335,-991.75636487,0.00049531,120]
[355624804,1741404640345,-1683.97624533,0.00049531,120]
[355624806,1741404640354,-439.27713478,0.00049531,120]
[355624808,1741404640364,-3118.9627385,0.00049531,120]
[355624810,1741404640374,-1729.85786529,0.00049531,120]
[355624812,1741404640383,-696.0967562,0.00049531,120]
[355624814,1741404640393,-419.89316606,0.00049531,120]